fUST/lending_fUST_20250727
["ID","MTS","AMOUNT","RATE_DAILY","PERIOD"]
[375283338,1753615877217,-492.93,0.00022465,2]
[375283339,1753615877229,-1381.0,0.00022465,2]
[375283340,1753615877240,-1164.21,0.00022465,2]
[375283341,1753615877251,-460.0,0.00022465,2]
[375283342,1753615877263,-460.0,0.00022465,2]
[375283343,1753615877274,-635.9,0.00022465,2]
[375283344,1753615877285,-1473.58,0.00022465,2]
[375283345,1753615877300,-460.0,0.00022465,2]
[375283346,1753615877311,-460.0,0.00022465,2]
[375283347,1753615877322,-460.0,0.00022465,2]
[375283348,1753615877334,-460.0,0.00022465,2]
[375283349,1753615877348,-300.80236473,0.00022466,2]
[375283350,1753615877359,-3712.899333,0.0002249,7]
[375283351,1753615877371,-221.65,0.000225,2]
[375283352,1753615877382,-200.64658427,0.00022509,2]
[375283353,1753615877394,-587.0,0.0002254,2]
[375283354,1753615877405,-2848.85961,0.0002259,7]
[375283355,1753615877417,-160.0,0.000226,7]
[375283356,1753615877428,-5000.0,0.00022613,2]
[375283357,1753615877440,-586.19948426,0.00022739,2]
[375283358,1753615877453,-1311.09,0.00022739,2]
[375283359,1753615877464,-460.0,0.00022739,2]
[375283360,1753615877475,-460.0,0.00022739,2]
[375283361,1753615877486,-1237.56,0.00022739,2]
[375283362,1753615877496,-460.0,0.00022739,2]
[375283363,1753615877507,-460.0,0.00022739,2]
[375283364,1753615877518,-1780.04,0.00022739,2]
[375283365,1753615877528,-460.0,0.00022739,2]
[375283366,1753615877540,-460.0,0.00022739,2]
[375283367,1753615877555,-460.0,0.00022739,2]
[375283368,1753615877565,-460.0,0.00022739,2]
[375283369,1753615877576,-269.46138922,0.00022739,2]
[375283370,1753615877587,-628.25,0.00022739,2]
[375283371,1753615877598,-588.88,0.00022739,2]
[375283372,1753615877608,-460.0,0.00022739,2]
[375283373,1753615877619,-460.0,0.00022739,2]
[375283374,1753615877629,-460.0,0.00022739,2]
[375283375,1753615877638,-482.95,0.00022739,2]
[375283376,1753615877647,-460.0,0.00022739,2]
[375283377,1753615877657,-369.3867747,0.00022739,2]
[375283378,1753615877668,-460.0,0.00022739,2]
[375283379,1753615877677,-460.0,0.00022739,2]
[375283380,1753615877687,-267.44385562,0.00022739,2]
[375283381,1753615877697,-460.0,0.00022739,2]
[375283382,1753615877707,-481.11,0.00022739,2]
[375283383,1753615877716,-460.0,0.00022739,2]
[375283384,1753615877726,-700.52,0.00022739,2]
[375283385,1753615877736,-460.0,0.00022739,2]
[375283386,1753615877746,-522.64,0.00022739,2]
[375283387,1753615877756,-460.0,0.00022739,2]
[375283388,1753615877766,-473.84,0.00022739,2]
[375283389,1753615877776,-460.0,0.00022739,2]
[375283390,1753615877786,-460.0,0.00022739,2]
[375283391,1753615877799,-460.0,0.00022739,2]
[375283392,1753615877810,-460.0,0.00022739,2]
[375283393,1753615877819,-2233.63,0.00022739,2]
[375283394,1753615877829,-460.0,0.00022739,2]
[375283395,1753615877839,-1630.4,0.00022739,2]
[375283396,1753615877849,-460.0,0.00022739,2]
[375283397,1753615877859,-772.54,0.00022739,2]
[375283398,1753615877870,-565.5,0.00022739,2]
[375283399,1753615877880,-460.0,0.00022739,2]
[375283400,1753615877890,-460.0,0.00022739,2]
[375283401,1753615877899,-198.4,0.00022739,2]
[375283402,1753615877910,-460.0,0.00022739,2]
[375283403,1753615877921,-466.14,0.00022739,2]
[375283404,1753615877930,-554.36,0.00022739,2]
[375283405,1753615877941,-939.82,0.00022739,2]
[375283406,1753615877950,-2047.96,0.00022739,2]
[375283407,1753615877960,-1111.37,0.00022739,2]
[375283408,1753615877971,-601.19,0.00022739,2]
[375283409,1753615877980,-1411.8,0.00022739,2]
[375283410,1753615877990,-734.55,0.00022739,2]
[375283411,1753615878000,-817.55,0.00022739,2]
[375283412,1753615878010,-460.0,0.00022739,2]
[375283413,1753615878020,-1243.43,0.00022739,2]
[375283414,1753615878029,-460.0,0.00022739,2]
[375283415,1753615878040,-460.0,0.00022739,2]
[375283416,1753615878052,-460.0,0.00022739,2]
[375283417,1753615878062,-4262.34,0.00022739,2]
[375283418,1753615878072,-3803.86,0.00022739,2]
[375283419,1753615878082,-471.21,0.00022739,2]
[375283420,1753615878091,-492.93,0.00022739,2]
[375283421,1753615878100,-1381.0,0.00022739,2]
[375283422,1753615878110,-1164.21,0.00022739,2]
[375283423,1753615878120,-460.0,0.00022739,2]
[375283424,1753615878130,-460.0,0.00022739,2]
[375283425,1753615878139,-635.9,0.00022739,2]
[375283426,1753615878150,-1473.58,0.00022739,2]
[375283427,1753615878160,-460.0,0.00022739,2]
[375283428,1753615878169,-460.0,0.00022739,2]
[375283429,1753615878180,-460.0,0.00022739,2]
[375283430,1753615878190,-363.13123283,0.00022739,2]
[375283431,1753615878199,-2848.85961,0.00022797,7]
[375283432,1753615878208,-2091.35341261,0.00022815,2]
[375283433,1753615878218,-660.0,0.0002287,2]
[375283434,1753615878227,-139192.82726752,0.00022929,2]
[375283435,1753615878237,-492.0,0.00022931,2]
[375283436,1753615878246,-1549.439954,0.0002296,5]
[375283437,1753615878257,-259.795596,0.0002296,7]
[375283438,1753615878267,-221.65,0.00022971,2]
[375283439,1753615878276,-1000.0,0.0002298,5]
[375283440,1753615878286,-25000.0,0.00022997,2]
[375283441,1753615878297,-151.0,0.00022997,7]
[375283442,1753615878398,-183.258394,0.00022997,7]
[375283443,1753615878408,-151.0,0.00022997,7]
[375283444,1753615878419,-178.419688,0.00022997,7]
[375283445,1753615878429,-178.419688,0.00022997,7]
[375283446,1753615878439,-160.0,0.00023,3]
[375283447,1753615878449,-1000.0,0.00023,5]
[375283448,1753615878459,-526.50274803,0.00023,3]
[375283449,1753615878469,-840.75038169,0.00023,3]
[375283450,1753615878479,-160.0,0.00023,3]
[375283451,1753615878489,-231.30466539,0.00023,3]
[375283452,1753615878500,-160.0,0.00023,3]
[375283453,1753615878509,-216.01841554,0.00023,3]
[375283454,1753615878520,-2848.85961,0.00023003,8]
[375283455,1753615878532,-1311.09,0.00023013,2]
[375283456,1753615878551,-460.0,0.00023013,2]
[375283457,1753615878562,-460.0,0.00023013,2]
[375283458,1753615878573,-1237.56,0.00023013,2]
[375283459,1753615878583,-460.0,0.00023013,2]
[375283460,1753615878593,-460.0,0.00023013,2]
[375283461,1753615878603,-1780.04,0.00023013,2]
[375283462,1753615878615,-460.0,0.00023013,2]
[375283463,1753615878626,-460.0,0.00023013,2]
[375283464,1753615878636,-460.0,0.00023013,2]
[375283465,1753615878646,-628.25,0.00023013,2]
[375283466,1753615878656,-588.88,0.00023013,2]
[375283467,1753615878666,-460.0,0.00023013,2]
[375283468,1753615878676,-460.0,0.00023013,2]
[375283469,1753615878686,-482.95,0.00023013,2]
[375283470,1753615878696,-460.0,0.00023013,2]
[375283471,1753615878706,-460.0,0.00023013,2]
[375283472,1753615878715,-460.0,0.00023013,2]
[375283473,1753615878725,-481.11,0.00023013,2]
[375283474,1753615878736,-460.0,0.00023013,2]
[375283475,1753615878746,-700.52,0.00023013,2]
[375283476,1753615878756,-460.0,0.00023013,2]
[375283477,1753615878765,-522.64,0.00023013,2]
[375283478,1753615878775,-460.0,0.00023013,2]
[375283479,1753615878784,-473.84,0.00023013,2]
[375283480,1753615878794,-460.0,0.00023013,2]
[375283481,1753615878806,-460.0,0.00023013,2]
[375283482,1753615878817,-460.0,0.00023013,2]
[375283483,1753615878827,-460.0,0.00023013,2]
[375283484,1753615878837,-2233.63,0.00023013,2]
[375283485,1753615878848,-460.0,0.00023013,2]
[375283486,1753615878857,-1630.4,0.00023013,2]
[375283487,1753615878867,-460.0,0.00023013,2]
[375283488,1753615878876,-772.54,0.00023013,2]
[375283489,1753615878886,-565.5,0.00023013,2]
[375283490,1753615878895,-460.0,0.00023013,2]
[375283491,1753615878905,-460.0,0.00023013,2]
[375283492,1753615878914,-460.0,0.00023013,2]
[375283493,1753615878924,-466.14,0.00023013,2]
[375283494,1753615878934,-554.36,0.00023013,2]
[375283495,1753615878945,-939.82,0.00023013,2]
[375283496,1753615878954,-2047.96,0.00023013,2]
[375283497,1753615878964,-1111.37,0.00023013,2]
[375283498,1753615878974,-601.19,0.00023013,2]
[375283499,1753615878984,-1411.8,0.00023013,2]
[375283500,1753615878994,-734.55,0.00023013,2]
[375283501,1753615879004,-817.55,0.00023013,2]
[375283502,1753615879014,-460.0,0.00023013,2]
[375283503,1753615879024,-1243.43,0.00023013,2]
[375283504,1753615879034,-460.0,0.00023013,2]
[375283505,1753615879044,-460.0,0.00023013,2]
[375283506,1753615879058,-460.0,0.00023013,2]
[375283507,1753615879067,-4262.34,0.00023013,2]
[375283508,1753615879077,-3803.86,0.00023013,2]
[375283509,1753615879087,-471.21,0.00023013,2]
[375283510,1753615879098,-492.93,0.00023013,2]
[375283511,1753615879108,-1381.0,0.00023013,2]
[375283512,1753615879118,-1164.21,0.00023013,2]
[375283513,1753615879128,-460.0,0.00023013,2]
[375283514,1753615879138,-460.0,0.00023013,2]
[375283515,1753615879148,-635.9,0.00023013,2]
[375283516,1753615879157,-1473.58,0.00023013,2]
[375283517,1753615879166,-460.0,0.00023013,2]
[375283518,1753615879176,-460.0,0.00023013,2]
[375283519,1753615879186,-460.0,0.00023013,2]
[375283520,1753615879196,-153.0,0.00023014,7]
[375283521,1753615879205,-151.0,0.00023133,7]
[375283522,1753615879214,-151.0,0.00023133,7]
[375283523,1753615879223,-1158.903073,0.00023133,7]
[375283524,1753615879233,-1158.903073,0.00023133,7]
[375283525,1753615879243,-492.0,0.00023133,2]
[375283526,1753615879253,-18899.68,0.000232,2]
[375283527,1753615879263,-644.0,0.000232,2]
[375283528,1753615879273,-2848.85961,0.0002321,8]
[375283529,1753615879283,-160.0,0.00023261,4]
[375283530,1753615879293,-492.0,0.00023267,2]
[375283531,1753615879305,-1311.09,0.00023287,2]
[375283532,1753615879314,-460.0,0.00023287,2]
[375283533,1753615879324,-460.0,0.00023287,2]
[375283534,1753615879334,-1237.56,0.00023287,2]
[375283535,1753615879344,-460.0,0.00023287,2]
[375283536,1753615879354,-155.78752042,0.00023287,2]
[375283537,1753615879363,-1780.04,0.00023287,2]
[375283538,1753615879372,-460.0,0.00023287,2]
[375283539,1753615879382,-460.0,0.00023287,2]
[375283540,1753615879391,-460.0,0.00023287,2]
[375283541,1753615879400,-628.25,0.00023287,2]
[375283542,1753615879410,-588.88,0.00023287,2]
[375283543,1753615879419,-460.0,0.00023287,2]
[375283544,1753615879428,-460.0,0.00023287,2]
[375283545,1753615879440,-482.95,0.00023287,2]
[375283546,1753615879449,-466.19812012,0.00023287,2]
[375283547,1753615879459,-460.0,0.00023287,2]
[375283548,1753615879468,-460.0,0.00023287,2]
[375283549,1753615879478,-481.11,0.00023287,2]
[375283550,1753615879488,-460.0,0.00023287,2]
[375283551,1753615879497,-700.52,0.00023287,2]
[375283552,1753615879506,-460.0,0.00023287,2]
[375283553,1753615879516,-522.64,0.00023287,2]
[375283554,1753615879526,-460.0,0.00023287,2]
[375283555,1753615879537,-473.84,0.00023287,2]
[375283556,1753615879548,-460.0,0.00023287,2]
[375283557,1753615879557,-460.0,0.00023287,2]
[375283558,1753615879567,-460.0,0.00023287,2]
[375283559,1753615879576,-460.0,0.00023287,2]
[375283560,1753615879586,-2233.63,0.00023287,2]
[375283561,1753615879595,-460.0,0.00023287,2]
[375283562,1753615879604,-1630.4,0.00023287,2]
[375283563,1753615879615,-460.0,0.00023287,2]
[375283564,1753615879624,-772.54,0.00023287,2]
[375283565,1753615879633,-565.5,0.00023287,2]
[375283566,1753615879643,-460.0,0.00023287,2]
[375283567,1753615879652,-460.0,0.00023287,2]
[375283568,1753615879662,-466.14,0.00023287,2]
[375283569,1753615879672,-554.36,0.00023287,2]
[375283570,1753615879682,-939.82,0.00023287,2]
[375283571,1753615879692,-2047.96,0.00023287,2]
[375283572,1753615879702,-1111.37,0.00023287,2]
[375283573,1753615879713,-601.19,0.00023287,2]
[375283574,1753615879722,-1411.8,0.00023287,2]
[375283575,1753615879732,-734.55,0.00023287,2]
[375283576,1753615879742,-817.55,0.00023287,2]
[375283577,1753615879752,-460.0,0.00023287,2]
[375283578,1753615879762,-1243.43,0.00023287,2]
[375283579,1753615879772,-460.0,0.00023287,2]
[375283580,1753615879782,-460.0,0.00023287,2]
[375283581,1753615879792,-460.0,0.00023287,2]
[375283582,1753615879803,-4262.34,0.00023287,2]
[375283583,1753615879813,-3803.86,0.00023287,2]
[375283584,1753615879823,-471.21,0.00023287,2]
[375283585,1753615879833,-492.93,0.00023287,2]
[375283586,1753615879843,-1381.0,0.00023287,2]
[375283587,1753615879853,-1164.21,0.00023287,2]
[375283588,1753615879863,-460.0,0.00023287,2]
[375283589,1753615879873,-460.0,0.00023287,2]
[375283590,1753615879883,-635.9,0.00023287,2]
[375283591,1753615879892,-1473.58,0.00023287,2]
[375283592,1753615879902,-460.0,0.00023287,2]
[375283593,1753615879911,-460.0,0.00023287,2]
[375283594,1753615879921,-460.0,0.00023287,2]
[375283595,1753615879931,-492.0,0.00023293,2]
[375283596,1753615879940,-500.0,0.00023356,2]
[375283597,1753615879950,-259.63,0.00023394,2]
[375283598,1753615879960,-2091.35341261,0.00023408,2]
[375283599,1753615879970,-2848.85961,0.00023417,9]
[375283600,1753615879980,-760.0,0.00023418,2]
[375283601,1753615879990,-221.65,0.00023457,2]
[375283602,1753615879999,-151.0,0.00023461,6]
[375283603,1753615880009,-25000.0,0.00023545,2]
[375283604,1753615880018,-1311.09,0.00023561,2]
[375283605,1753615880028,-460.0,0.00023561,2]
[375283606,1753615880037,-460.0,0.00023561,2]
[375283607,1753615880049,-1237.56,0.00023561,2]
[375283608,1753615880058,-460.0,0.00023561,2]
[375283609,1753615880067,-1780.04,0.00023561,2]
[375283610,1753615880077,-460.0,0.00023561,2]
[375283611,1753615880087,-460.0,0.00023561,2]
[375283612,1753615880096,-151.0,0.00023561,7]
[375283613,1753615880106,-460.0,0.00023561,2]
[375283614,1753615880115,-628.25,0.00023561,2]
[375283615,1753615880125,-588.88,0.00023561,2]
[375283616,1753615880135,-460.0,0.00023561,2]
[375283617,1753615880145,-328.08265147,0.00023561,2]
[375283618,1753615880155,-482.95,0.00023561,2]
[375283619,1753615880165,-460.0,0.00023561,2]
[375283620,1753615880174,-460.0,0.00023561,2]
[375283621,1753615880184,-481.11,0.00023561,2]
[375283622,1753615880194,-460.0,0.00023561,2]
[375283623,1753615880203,-700.52,0.00023561,2]
[375283624,1753615880213,-460.0,0.00023561,2]
[375283625,1753615880223,-522.64,0.00023561,2]
[375283626,1753615880232,-185.11060355,0.00023561,2]
[375283627,1753615880242,-473.84,0.00023561,2]
[375283628,1753615880252,-460.0,0.00023561,2]
[375283629,1753615880261,-460.0,0.00023561,2]
[375283630,1753615880270,-1500.0,0.00023561,14]
[375283631,1753615880280,-1500.0,0.00023561,14]
[375283632,1753615880290,-1500.0,0.00023561,14]
[375283633,1753615880302,-1500.0,0.00023561,14]
[375283634,1753615880312,-1500.0,0.00023561,14]
[375283635,1753615880323,-1500.0,0.00023561,14]
[375283636,1753615880333,-1500.0,0.00023561,14]
[375283637,1753615880342,-1500.0,0.00023561,14]
[375283638,1753615880352,-1500.0,0.00023561,14]
[375283639,1753615880362,-1500.0,0.00023561,14]
[375283640,1753615880371,-1500.0,0.00023561,14]
[375283641,1753615880381,-1500.0,0.00023561,14]
[375283642,1753615880391,-1500.0,0.00023561,14]
[375283643,1753615880400,-1500.0,0.00023561,14]
[375283644,1753615880410,-1500.0,0.00023561,14]
[375283645,1753615880419,-1500.0,0.00023561,14]
[375283646,1753615880428,-1500.0,0.00023561,14]
[375283647,1753615880437,-1500.0,0.00023561,14]
[375283648,1753615880447,-1500.0,0.00023561,14]
[375283649,1753615880456,-1500.0,0.00023561,14]
[375283650,1753615880465,-1500.0,0.00023561,14]
[375283651,1753615880474,-1250.914412,0.00023561,14]
[375283652,1753615880483,-460.0,0.00023561,2]
[375283653,1753615880492,-228.43,0.00023561,2]
[375283654,1753615880501,-2233.63,0.00023561,2]
[375283655,1753615880510,-460.0,0.00023561,2]
[375283656,1753615880521,-1630.4,0.00023561,2]
[375283657,1753615880530,-460.0,0.00023561,2]
[375283658,1753615880541,-772.54,0.00023561,2]
[375283659,1753615880553,-565.5,0.00023561,2]
[375283660,1753615880562,-460.0,0.00023561,2]
[375283661,1753615880571,-183.60991967,0.00023561,2]
[375283662,1753615880582,-466.14,0.00023561,2]
[375283663,1753615880592,-554.36,0.00023561,2]
[375283664,1753615880689,-939.82,0.00023561,2]
[375283665,1753615880699,-2047.96,0.00023561,2]
[375283666,1753615880708,-1111.37,0.00023561,2]
[375283667,1753615880718,-601.19,0.00023561,2]
[375283668,1753615880728,-1411.8,0.00023561,2]
[375283669,1753615880737,-734.55,0.00023561,2]
[375283670,1753615880747,-817.55,0.00023561,2]
[375283671,1753615880757,-470.18732355,0.00023561,2]
[375283672,1753615880767,-1243.43,0.00023561,2]
[375283673,1753615880776,-460.0,0.00023561,2]
[375283674,1753615880786,-460.0,0.00023561,2]
[375283675,1753615880796,-460.0,0.00023561,2]
[375283676,1753615880807,-4262.34,0.00023561,2]
[375283677,1753615880817,-3803.86,0.00023561,2]
[375283678,1753615880826,-471.21,0.00023561,2]
[375283679,1753615880836,-492.93,0.00023561,2]
[375283680,1753615880845,-1381.0,0.00023561,2]
[375283681,1753615880855,-460.0,0.00023561,2]
[375283682,1753615880865,-1164.21,0.00023561,2]
[375283683,1753615880874,-635.9,0.00023561,2]
[375283684,1753615880884,-1473.58,0.00023561,2]
[375283685,1753615880893,-460.0,0.00023561,2]
[375283686,1753615880903,-386.88,0.00023561,2]
[375283687,1753615880912,-460.0,0.00023561,2]
[375283688,1753615880921,-797.56,0.000236,7]
[375283689,1753615880931,-2512.41,0.000236,7]
[375283690,1753615880940,-2848.85961,0.00023624,9]
[375283691,1753615880950,-492.0,0.00023628,2]
[375283692,1753615880960,-492.0,0.00023671,2]
[375283693,1753615880969,-492.0,0.00023682,2]
[375283694,1753615880978,-492.0,0.00023778,2]
[375283695,1753615880987,-2848.85961,0.00023831,10]
[375283696,1753615880997,-1311.09,0.00023835,2]
[375283697,1753615881007,-460.0,0.00023835,2]
[375283698,1753615881016,-460.0,0.00023835,2]
[375283699,1753615881025,-1237.56,0.00023835,2]
[375283700,1753615881036,-566.0,0.00023835,2]
[375283701,1753615881046,-1780.04,0.00023835,2]
[375283702,1753615881057,-460.0,0.00023835,2]
[375283703,1753615881067,-460.0,0.00023835,2]
[375283704,1753615881076,-460.0,0.00023835,2]
[375283705,1753615881086,-628.25,0.00023835,2]
[375283706,1753615881095,-588.88,0.00023835,2]
[375283707,1753615881104,-460.0,0.00023835,2]
[375283708,1753615881114,-482.95,0.00023835,2]
[375283709,1753615881123,-181.32,0.00023835,2]
[375283710,1753615881134,-546.37,0.00023835,2]
[375283711,1753615881144,-481.11,0.00023835,2]
[375283712,1753615881154,-415.6,0.00023835,2]
[375283713,1753615881163,-700.52,0.00023835,2]
[375283714,1753615881173,-460.0,0.00023835,2]
[375283715,1753615881183,-522.64,0.00023835,2]
[375283716,1753615881193,-473.84,0.00023835,2]
[375283717,1753615881203,-460.0,0.00023835,2]
[375283718,1753615881213,-151.0,0.00023835,7]
[375283719,1753615881225,-460.0,0.00023835,2]
[375283720,1753615881235,-2233.63,0.00023835,2]
[375283721,1753615881244,-460.0,0.00023835,2]
[375283722,1753615881254,-151.0,0.00023835,7]
[375283723,1753615881263,-1630.4,0.00023835,2]
[375283724,1753615881272,-460.0,0.00023835,2]
[375283725,1753615881282,-772.54,0.00023835,2]
[375283726,1753615881292,-565.5,0.00023835,2]
[375283727,1753615881303,-460.0,0.00023835,2]
[375283728,1753615881312,-466.14,0.00023835,2]
[375283729,1753615881321,-554.36,0.00023835,2]
[375283730,1753615881331,-939.82,0.00023835,2]
[375283731,1753615881341,-2047.96,0.00023835,2]
[375283732,1753615881351,-1111.37,0.00023835,2]
[375283733,1753615881364,-601.19,0.00023835,2]
[375283734,1753615881374,-1411.8,0.00023835,2]
[375283735,1753615881383,-734.55,0.00023835,2]
[375283736,1753615881394,-817.55,0.00023835,2]
[375283737,1753615881404,-1243.43,0.00023835,2]
[375283738,1753615881416,-460.0,0.00023835,2]
[375283739,1753615881425,-178.419688,0.00023835,7]
[375283740,1753615881435,-460.0,0.00023835,2]
[375283741,1753615881444,-460.0,0.00023835,2]
[375283742,1753615881454,-178.419688,0.00023835,7]
[375283743,1753615881463,-4262.34,0.00023835,2]
[375283744,1753615881474,-3803.86,0.00023835,2]
[375283745,1753615881484,-471.21,0.00023835,2]
[375283746,1753615881493,-492.93,0.00023835,2]
[375283747,1753615881502,-1381.0,0.00023835,2]
[375283748,1753615881512,-460.0,0.00023835,2]
[375283749,1753615881526,-1164.21,0.00023835,2]
[375283750,1753615881535,-635.9,0.00023835,2]
[375283751,1753615881544,-1473.58,0.00023835,2]
[375283752,1753615881555,-460.0,0.00023835,2]
[375283753,1753615881576,-460.67,0.00023835,2]
[375283754,1753615881586,-151.0,0.00023846,6]
[375283755,1753615881596,-154.445282,0.00023872,2]
[375283756,1753615881605,-429.9863832,0.0002389,2]
[375283757,1753615881615,-429.9863832,0.0002389,2]
[375283758,1753615881625,-429.9863832,0.0002389,2]
[375283759,1753615881634,-429.5033752,0.0002389,2]
[375283760,1753615881644,-1175.76829149,0.000239,2]
[375283761,1753615881655,-221.65,0.00023942,2]
[375283762,1753615881665,-860.0,0.00023966,2]
[375283763,1753615881675,-603.48989277,0.0002397,2]
[375283764,1753615881685,-2091.35341261,0.00024,2]
[375283765,1753615881695,-206.0,0.00024,2]
[375283766,1753615881706,-526.50274803,0.00024,7]
[375283767,1753615881715,-840.75038169,0.00024,7]
[375283768,1753615881727,-231.30466539,0.00024,7]
[375283769,1753615881737,-160.0,0.00024,7]
[375283770,1753615881746,-216.01841554,0.00024,7]
[375283771,1753615881755,-332.605411,0.00024009,8]
[375283772,1753615881765,-2848.85961,0.00024038,10]
[375283773,1753615881776,-492.0,0.00024069,2]
[375283774,1753615881786,-500.0,0.00024076,2]
[375283775,1753615881795,-1311.09,0.00024109,2]
[375283776,1753615881806,-460.0,0.00024109,2]
[375283777,1753615881815,-460.0,0.00024109,2]
[375283778,1753615881825,-1237.56,0.00024109,2]
[375283779,1753615881834,-1780.04,0.00024109,2]
[375283780,1753615881844,-460.0,0.00024109,2]
[375283781,1753615881853,-309.91054414,0.00024109,2]
[375283782,1753615881862,-460.0,0.00024109,2]
[375283783,1753615881871,-628.25,0.00024109,2]
[375283784,1753615881882,-588.88,0.00024109,2]
[375283785,1753615881891,-460.0,0.00024109,2]
[375283786,1753615881901,-482.95,0.00024109,2]
[375283787,1753615881910,-481.11,0.00024109,2]
[375283788,1753615881919,-700.52,0.00024109,2]
[375283789,1753615881929,-460.0,0.00024109,2]
[375283790,1753615881938,-522.64,0.00024109,2]
[375283791,1753615881947,-473.84,0.00024109,2]
[375283792,1753615881956,-460.0,0.00024109,2]
[375283793,1753615881965,-460.0,0.00024109,2]
[375283794,1753615881975,-2233.63,0.00024109,2]
[375283795,1753615881984,-598.0,0.00024109,2]
[375283796,1753615881994,-1630.4,0.00024109,2]
[375283797,1753615882003,-460.0,0.00024109,2]
[375283798,1753615882014,-772.54,0.00024109,2]
[375283799,1753615882023,-565.5,0.00024109,2]
[375283800,1753615882033,-538.9545316,0.00024109,2]
[375283801,1753615882042,-466.14,0.00024109,2]
[375283802,1753615882052,-554.36,0.00024109,2]
[375283803,1753615882062,-939.82,0.00024109,2]
[375283804,1753615882072,-2047.96,0.00024109,2]
[375283805,1753615882082,-1111.37,0.00024109,2]
[375283806,1753615882091,-601.19,0.00024109,2]
[375283807,1753615882101,-1411.8,0.00024109,2]
[375283808,1753615882110,-734.55,0.00024109,2]
[375283809,1753615882120,-817.55,0.00024109,2]
[375283810,1753615882129,-1243.43,0.00024109,2]
[375283811,1753615882138,-365.8638786,0.00024109,2]
[375283812,1753615882148,-460.0,0.00024109,2]
[375283813,1753615882161,-460.0,0.00024109,2]
[375283814,1753615882172,-4262.34,0.00024109,2]
[375283815,1753615882181,-3803.86,0.00024109,2]
[375283816,1753615882190,-471.21,0.00024109,2]
[375283817,1753615882200,-492.93,0.00024109,2]
[375283818,1753615882209,-1381.0,0.00024109,2]
[375283819,1753615882219,-384.62,0.00024109,2]
[375283820,1753615882228,-1164.21,0.00024109,2]
[375283821,1753615882237,-635.9,0.00024109,2]
[375283822,1753615882247,-1473.58,0.00024109,2]
[375283823,1753615882257,-460.0,0.00024109,2]
[375283824,1753615882266,-900.0,0.00024143,2]
[375283825,1753615882276,-900.0,0.00024152,2]
[375283826,1753615882285,-153.0,0.00024164,7]
[375283827,1753615882295,-492.0,0.00024168,2]
[375283828,1753615882307,-509.70150829,0.00024185,2]
[375283829,1753615882317,-342.14949569,0.00024185,2]
[375283830,1753615882326,-1368.59798274,0.00024185,2]
[375283831,1753615882335,-3079.34546117,0.00024185,2]
[375283832,1753615882345,-5468.91753903,0.00024185,2]
[375283833,1753615882355,-500.0,0.00024185,2]
[375283834,1753615882364,-500.0,0.00024189,2]
[375283835,1753615882374,-900.0,0.00024192,2]
[375283836,1753615882383,-154.445282,0.00024208,8]
[375283837,1753615882392,-151.0,0.00024231,6]